bitfinex/quotes_SOLUSD_20241126
["timestamp","ask_amount","ask_price","bid_price","bid_amount"]
[1732634253012,42.04613676,231.19,231.15,23.776884]
[1732634253219,42.04613676,231.19,231.13,23.776884]
[1732634253534,42.04613676,231.21,231.13,28.103184]
[1732634253709,42.04613676,231.19,231.13,28.103184]
[1732634254028,42.04613676,231.17,231.08,42.04613676]
[1732634254234,42.04613676,231.09,231.02,15.3118]
[1732634254404,42.04613676,231.09,231.0,6.1536]
[1732634254405,42.04613676,231.06,231.0,10.4824]
[1732634254737,42.04613676,231.02,230.95,42.04613676]
[1732634254940,42.04613676,231.02,230.96,4.3295]
[1732634255427,42.04613676,230.98,230.94,1.99108556]
[1732634255730,42.04613676,230.98,230.9,4.3308]
[1732634256831,42.04613676,230.98,230.91,23.776884]
[1732634257210,42.04613676,231.0,230.91,65.82302076]
[1732634257412,42.04613676,231.0,230.94,23.776884]
[1732634257631,42.04613676,231.02,230.94,23.776884]
[1732634257836,42.04613676,231.0,230.94,23.776884]
[1732634259021,42.04613676,231.0,230.94,28.106884]
[1732634259213,42.04613676,231.0,230.94,23.776884]
[1732634259626,42.04613676,231.0,230.91,42.04613676]
[1732634259833,42.04613676,231.0,230.91,46.37673676]
[1732634260336,42.04613676,230.98,230.91,46.37673676]
[1732634260644,42.04613676,230.98,230.89,46.37703676]
[1732634261135,42.04613676,230.98,230.9,23.776884]
[1732634261345,42.04613676,230.98,230.92,23.776884]
[1732634261946,42.04613676,230.98,230.9,23.776884]
[1732634262645,42.04613676,230.92,230.83,4.332]
[1732634262827,42.04613676,230.9,230.83,46.37813676]
[1732634263029,42.04613676,230.88,230.81,46.37853676]
[1732634263237,42.04613676,230.88,230.81,4.3324]
[1732634263533,42.04613676,230.88,230.81,42.04613676]
[1732634263745,42.04613676,230.88,230.81,46.37853676]
[1732634263948,42.04613676,230.88,230.81,42.04613676]
[1732634264239,42.04613676,230.88,230.81,46.37863676]
[1732634264637,84.09227352,230.88,230.79,1.92887294]
[1732634264849,84.09227352,230.88,230.75,4.3336]
[1732634265144,4.3314,230.87,230.75,4.3336]
[1732634265322,4.3314,230.87,230.73,46.38003676]
[1732634265533,30.6167,230.87,230.67,42.04613676]
[1732634265722,30.6167,230.87,230.65,10.8386]
[1732634265723,42.04613676,230.74,230.66,4.3353]
[1732634266618,42.04613676,230.72,230.65,46.38153676]
[1732634267345,42.04613676,230.7,230.63,46.90630726]
[1732634268853,42.04613676,230.7,230.63,0.5243705]
[1732634269026,84.09227352,230.64,230.63,0.5243705]
[1732634269233,94.09227352,230.64,230.63,0.5243705]
[1732634269742,89.09227352,230.64,230.63,0.5243705]
[1732634269947,47.04613676,230.64,230.63,0.5243705]
[1732634270226,46.38183676,230.64,230.63,0.5243705]
[1732634270534,93.42797352,230.64,230.63,0.5243705]
[1732634270836,46.38183676,230.64,230.63,0.5243705]
[1732634271052,51.38183676,230.64,230.63,0.5243705]
[1732634271230,93.42797352,230.64,230.63,0.5243705]
[1732634271549,93.42797352,230.64,230.44,15.0615]
[1732634271550,25.0,230.59,230.45,42.04613676]
[1732634271723,42.04613676,230.51,230.43,42.04613676]
[1732634272041,42.04613676,230.51,230.41,48.19973676]
[1732634272532,42.04613676,230.49,230.41,48.19973676]
[1732634272743,42.04613676,230.49,230.41,42.04613676]
[1732634272942,42.04613676,230.47,230.39,42.57050726]
[1732634273246,42.04613676,230.43,230.39,0.5243705]
[1732634273630,42.04613676,230.45,230.39,0.5243705]
[1732634273832,42.04613676,230.43,230.39,0.5243705]
[1732634274350,42.04613676,230.41,230.39,0.5243705]
[1732634275155,42.04613676,230.43,230.39,0.5243705]
[1732634275549,42.04613676,230.41,230.39,0.5243705]
[1732634276235,42.04613676,230.45,230.39,0.5243705]
[1732634277163,4.3392,230.46,230.39,0.5243705]
[1732634277164,42.04613676,230.43,230.39,0.5243705]
[1732634277334,42.04613676,230.41,230.39,0.5243705]
[1732634279344,42.04613676,230.45,230.39,0.5243705]
[1732634279528,42.04613676,230.47,230.39,42.57050726]
[1732634279728,42.04613676,230.47,230.4,23.776884]
[1732634280144,42.04613676,230.45,230.4,23.776884]
[1732634280339,42.04613676,230.47,230.4,23.776884]
[1732634280654,42.04613676,230.45,230.4,23.776884]
[1732634280952,42.04613676,230.43,230.39,0.5243705]
[1732634281127,42.04613676,230.41,230.39,0.5243705]
[1732634282347,4.3402,230.4,230.39,0.5243705]
[1732634282538,46.38623676,230.41,230.39,0.5243705]
[1732634282742,46.38583676,230.43,230.39,0.5243705]
[1732634282934,42.04613676,230.49,230.41,42.04613676]
[1732634283132,5.0,230.57,230.39,4.8647705]
[1732634283133,42.04613676,230.51,230.43,42.04613676]
[1732634283655,42.04613676,230.51,230.44,23.776884]
[1732634283951,42.04613676,230.45,230.39,0.5243705]
[1732634284156,42.04613676,230.42,230.39,0.5243705]
[1732634284860,42.04613676,230.4,230.39,0.5243705]
[1732634285357,89.09227352,230.4,230.39,0.5243705]
[1732634286453,93.43247352,230.4,230.39,0.5243705]
[1732634287039,88.43247352,230.4,230.39,0.5243705]
[1732634287237,46.38633676,230.4,230.39,0.5243705]
[1732634287455,93.43247352,230.4,230.39,0.5243705]
[1732634288464,88.43247352,230.4,230.39,0.5243705]
[1732634288647,93.43247352,230.4,230.39,0.5243705]
[1732634289159,98.43247352,230.4,230.39,0.5243705]
[1732634290445,93.43247352,230.4,230.39,0.5243705]
[1732634290645,46.38633676,230.4,230.39,0.5243705]
[1732634291655,42.04613676,230.4,230.39,0.5243705]
[1732634292171,84.09227352,230.4,230.39,0.5243705]
[1732634292360,42.04613676,230.4,230.39,0.5243705]
[1732634292951,84.09227352,230.4,230.39,0.5243705]
[1732634293145,42.04613676,230.4,230.39,0.5243705]
[1732634293340,89.09227352,230.4,230.39,0.5243705]
[1732634293557,42.04613676,230.4,230.39,0.5243705]
[1732634293758,47.04613676,230.4,230.39,0.5243705]
[1732634294061,84.09227352,230.4,230.39,0.5243705]
[1732634294653,42.04613676,230.4,230.39,0.5243705]
[1732634295260,4.3401,230.41,230.39,0.5243705]
[1732634295837,4.3393,230.45,230.39,42.57050726]
[1732634296069,42.04613676,230.5,230.42,23.776884]
[1732634296264,42.04613676,230.44,230.39,0.5243705]
[1732634296453,5.0,230.5,230.39,0.5243705]
[1732634296454,4.34,230.41,230.39,0.5243705]
[1732634297143,42.04613676,230.46,230.39,42.57050726]
[1732634297342,42.04613676,230.52,230.44,42.04613676]
[1732634297560,42.04613676,230.54,230.47,23.776884]
[1732634297974,42.04613676,230.52,230.44,42.04613676]
[1732634298174,42.04613676,230.52,230.45,23.776884]
[1732634298354,42.04613676,230.5,230.42,42.04613676]
[1732634298544,42.04613676,230.48,230.4,42.04613676]
[1732634298748,42.04613676,230.46,230.39,24.3012545]
[1732634299056,4.3385,230.49,230.42,42.04613676]
[1732634299254,42.04613676,230.55,230.47,42.04613676]
[1732634299453,42.04613676,230.53,230.45,42.04613676]
[1732634299662,42.04613676,230.53,230.46,23.776884]
[1732634300174,46.38333676,230.56,230.49,23.776884]
[1732634300472,42.04613676,230.54,230.47,23.776884]
[1732634300649,42.04613676,230.5,230.42,42.04613676]
[1732634300880,4.3378,230.53,230.39,0.5243705]
[1732634300881,42.04613676,230.44,230.39,0.5243705]
[1732634301046,42.04613676,230.43,230.39,0.5243705]
[1732634301267,42.04613676,230.47,230.39,0.5243705]
[1732634301471,42.04613676,230.49,230.42,42.04613676]
[1732634302171,42.04613676,230.51,230.42,42.04613676]
[1732634302372,46.38393676,230.53,230.47,23.776884]
[1732634302571,42.04613676,230.52,230.44,42.04613676]
[1732634302752,42.04613676,230.52,230.45,23.776884]
[1732634302951,4.3375,230.55,230.48,42.04613676]
[1732634303154,4.3363,230.61,230.54,42.04613676]
[1732634303375,19.48201127,230.71,230.48,6.4837]
[1732634303376,42.04613676,230.64,230.57,42.04613676]
[1732634303571,46.38153676,230.66,230.59,42.04613676]
[1732634303754,46.38153676,230.66,230.6,23.776884]
[1732634304070,42.04613676,230.68,230.6,23.776884]
[1732634304272,42.04613676,230.64,230.58,23.776884]
[1732634304474,0.98873766,230.67,230.61,42.04613676]
[1732634304684,0.98873766,230.67,230.62,23.776884]
[1732634305053,5.32393766,230.67,230.6,23.776884]
[1732634305275,42.04613676,230.64,230.56,23.776884]
[1732634305584,42.04613676,230.64,230.55,42.04613676]
[1732634305883,16.16183766,230.67,230.53,42.04613676]
[1732634305884,42.04613676,230.62,230.53,42.04613676]
[1732634306172,42.04613676,230.58,230.51,58.27673676]
[1732634306372,5.0,230.66,230.51,58.27673676]
[1732634306373,42.04613676,230.6,230.53,42.04613676]
[1732634306584,4.3367,230.59,230.53,42.04613676]
[1732634306955,4.3367,230.59,230.51,58.27673676]
[1732634307173,5.6,230.65,230.57,42.04613676]
[1732634307375,42.04613676,230.71,230.63,42.04613676]
[1732634307574,25.3379,230.81,230.53,10.12549]
[1732634307575,42.04613676,230.73,230.65,42.04613676]
[1732634307776,42.04613676,230.71,230.63,42.04613676]
[1732634308087,42.04613676,230.69,230.62,23.276884]
[1732634308412,42.04613676,230.71,230.63,42.04613676]
[1732634308561,4.335,230.68,230.61,42.04613676]
[1732634308766,42.04613676,230.67,230.58,42.04613676]
[1732634308961,42.04613676,230.65,230.56,42.04613676]
[1732634309184,42.04613676,230.65,230.58,42.04613676]
[1732634309385,15.1725,230.68,230.56,42.04613676]
[1732634309386,42.04613676,230.63,230.56,42.04613676]
[1732634309866,42.04613676,230.59,230.52,42.04613676]
[1732634310255,42.04613676,230.59,230.51,16.2306]
[1732634310460,42.04613676,230.55,230.48,48.52983676]
[1732634310656,42.04613676,230.53,230.48,6.4837]
[1732634310857,42.04613676,230.53,230.46,42.04613676]
[1732634311072,42.04613676,230.53,230.43,16.2306]
[1732634311073,42.04613676,230.53,230.44,42.04613676]
[1732634311487,42.04613676,230.57,230.49,42.04613676]
[1732634311680,42.04613676,230.59,230.43,31.4194]
[1732634311867,4.3359,230.63,230.43,31.4194]
[1732634311868,46.38203676,230.63,230.55,42.04613676]
[1732634312272,46.38203676,230.63,230.56,23.776884]
[1732634312470,42.04613676,230.61,230.53,42.04613676]
[1732634312676,42.04613676,230.63,230.56,23.776884]
[1732634312985,4.3357,230.65,230.59,42.04613676]
[1732634313169,42.04613676,230.63,230.56,23.776884]
[1732634313375,42.04613676,230.59,230.51,42.04613676]
[1732634313562,42.04613676,230.57,230.49,42.04613676]
[1732634314683,4.3372,230.56,230.49,42.04613676]
[1732634314889,42.04613676,230.55,230.47,42.04613676]
[1732634315185,4.3372,230.56,230.49,42.04613676]
[1732634315577,4.3372,230.56,230.51,42.04613676]
[1732634316282,4.3365,230.61,230.55,42.04613676]
[1732634316892,4.3365,230.61,230.57,42.04613676]
[1732634317186,4.3365,230.61,230.52,4.3379]
[1732634317187,4.3351,230.67,230.59,42.04613676]
[1732634317985,46.38123676,230.67,230.59,42.04613676]
[1732634318189,42.04613676,230.63,230.53,42.04613676]
[1732634318494,42.04613676,230.63,230.55,42.04613676]
[1732634318672,42.04613676,230.61,230.54,23.776884]
[1732634318867,4.3365,230.6,230.53,42.04613676]
[1732634319189,4.3365,230.6,230.55,42.04613676]
[1732634319569,4.3364,230.61,230.55,42.04613676]
[1732634319774,4.3364,230.61,230.53,42.04613676]
[1732634320093,46.38253676,230.61,230.53,42.04613676]
[1732634320901,42.04613676,230.59,230.51,42.04613676]
[1732634322489,46.38253676,230.61,230.54,23.776884]
[1732634322675,4.3364,230.61,230.55,42.04613676]
[1732634322875,4.3362,230.62,230.57,42.04613676]
[1732634323473,4.3362,230.62,230.55,42.04613676]
[1732634324095,42.04613676,230.59,230.54,23.776884]
[1732634324275,42.04613676,230.59,230.51,42.04613676]
[1732634324598,42.04613676,230.57,230.49,42.04613676]
[1732634325096,42.04613676,230.53,230.45,42.04613676]
[1732634325470,42.04613676,230.51,230.43,42.04613676]
[1732634325974,42.04613676,230.53,230.45,42.04613676]
[1732634326173,42.04613676,230.51,230.43,42.04613676]
[1732634326367,22.10148457,230.58,230.39,42.57050726]
[1732634326368,42.04613676,230.47,230.39,42.57050726]
[1732634326570,4.3391,230.46,230.39,42.57050726]
[1732634327301,4.3391,230.46,230.39,0.5243705]
[1732634327975,4.3391,230.46,230.39,42.57050726]
[1732634328175,42.04613676,230.47,230.39,42.57050726]
[1732634328176,42.04613676,230.47,230.39,46.91090726]
[1732634328488,42.04613676,230.47,230.4,23.776884]
[1732634328993,4.3389,230.48,230.41,42.04613676]
[1732634329572,42.04613676,230.51,230.43,42.04613676]
[1732634329805,20.0,230.5,230.45,42.04613676]
[1732634330297,10.6,230.57,230.47,42.04613676]
[1732634330298,42.04613676,230.55,230.47,42.04613676]
[1732634330675,46.38353676,230.55,230.47,42.04613676]
[1732634331086,42.04613676,230.53,230.45,42.04613676]
[1732634331987,4.3374,230.55,230.49,42.04613676]
[1732634332299,4.3372,230.57,230.51,42.04613676]
[1732634332687,4.3372,230.57,230.53,42.04613676]
[1732634332885,4.3365,230.6,230.53,42.04613676]
[1732634333276,4.3365,230.6,230.55,42.04613676]
[1732634333892,42.04613676,230.63,230.55,42.04613676]
[1732634334097,42.04613676,230.61,230.53,42.04613676]
[1732634334306,15.1764,230.62,230.55,42.04613676]
[1732634334502,4.3361,230.62,230.55,42.04613676]
[1732634334717,42.04613676,230.61,230.53,42.04613676]
[1732634335599,15.1764,230.62,230.55,42.04613676]
[1732634335794,15.1764,230.62,230.47,6.1564]
[1732634335795,42.04613676,230.61,230.53,42.04613676]
[1732634336199,4.3365,230.6,230.53,42.04613676]
[1732634336610,4.3365,230.6,230.44,44.360284]
[1732634336611,20.0,230.51,230.4,6.1564]
[1732634336809,42.04613676,230.47,230.4,6.1564]
[1732634337131,20.0,230.51,230.4,6.1564]
[1732634337132,42.04613676,230.49,230.41,42.04613676]
[1732634337297,42.04613676,230.51,230.43,42.04613676]
[1732634337499,20.0,230.54,230.47,42.04613676]
[1732634338393,4.3378,230.53,230.47,42.04613676]
[1732634339218,4.3378,230.53,230.4,48.20253676]
[1732634339219,20.0,230.52,230.45,42.04613676]
[1732634339410,42.04613676,230.51,230.43,42.04613676]
[1732634339612,15.1823,230.53,230.43,42.04613676]
[1732634339613,20.0,230.5,230.43,42.04613676]
[1732634340329,57.22843676,230.53,230.45,42.04613676]
[1732634340515,42.04613676,230.5,230.4,6.1564]
[1732634340719,42.04613676,230.48,230.4,42.04613676]
[1732634341901,42.04613676,230.48,230.39,0.5243705]
[1732634342117,42.04613676,230.48,230.4,42.04613676]
[1732634342511,42.04613676,230.46,230.39,0.5243705]
[1732634342821,42.04613676,230.42,230.39,0.5243705]
[1732634343023,42.04613676,230.4,230.39,0.5243705]
[1732634343319,20.0,230.41,230.39,0.5243705]
[1732634344315,26.05684345,230.44,230.39,0.5243705]
[1732634344498,4.3397,230.43,230.39,0.5243705]
[1732634345117,26.05684345,230.42,230.39,0.5243705]
[1732634345728,46.05684345,230.4,230.39,0.5243705]
[1732634346533,50.39704345,230.4,230.39,0.5243705]
[1732634348933,76.4538869,230.4,230.39,0.5243705]
[1732634349330,50.39704345,230.4,230.39,0.5243705]
[1732634350006,76.4538869,230.4,230.39,0.5243705]
[1732634350209,100.2307709,230.4,230.39,0.5243705]
[1732634350633,100.2307709,230.4,230.18,15.824]
[1732634350634,23.776884,230.35,230.19,26.05684345]
[1732634350818,23.776884,230.35,230.16,6.7398705]
[1732634350819,26.05684345,230.26,230.17,26.05684345]
[1732634351251,26.05684345,230.24,230.16,6.7398705]
[1732634351747,4.3434,230.23,230.16,6.7398705]
[1732634351953,4.3434,230.23,230.16,0.5243705]
[1732634352348,26.05684345,230.22,230.16,0.5243705]
[1732634352547,4.3434,230.23,230.16,0.5243705]
[1732634352548,26.05684345,230.21,230.16,0.5243705]
[1732634352753,30.40024345,230.23,230.16,0.5243705]
[1732634353755,26.05684345,230.21,230.16,0.5243705]
[1732634355165,36.00024345,230.23,230.16,0.5243705]
[1732634355359,26.05684345,230.21,230.16,0.5243705]
[1732634355564,36.00024345,230.23,230.16,0.5243705]
[1732634355763,26.05684345,230.21,230.16,0.5243705]
[1732634356450,46.85894345,230.23,230.16,0.5243705]
[1732634357460,36.00024345,230.23,230.16,0.5243705]
[1732634357757,9.9434,230.23,230.16,0.5243705]
[1732634357953,26.05684345,230.2,230.16,0.5243705]
[1732634358159,26.05684345,230.22,230.16,0.5243705]
[1732634358639,26.05684345,230.26,230.18,26.05684345]
[1732634358830,26.05684345,230.24,230.16,26.58121395]
[1732634359255,4.3434,230.23,230.16,26.58121395]
[1732634359630,4.3434,230.23,230.16,0.5243705]
[1732634359833,4.3434,230.23,230.16,26.58121395]
[1732634360437,26.05684345,230.26,230.18,26.05684345]
[1732634360630,30.39974345,230.26,230.18,26.05684345]
[1732634361022,26.05684345,230.26,230.19,23.776884]
[1732634361324,26.05684345,230.27,230.19,23.776884]
[1732634361729,4.3425,230.29,230.23,26.05684345]
[1732634361932,4.3425,230.29,230.21,26.05684345]
[1732634362140,26.05684345,230.28,230.21,26.05684345]
[1732634362444,26.05684345,230.24,230.17,26.05684345]
[1732634363032,26.05684345,230.26,230.17,26.05684345]
[1732634363378,4.3431,230.25,230.17,26.05684345]
[1732634363842,26.05684345,230.24,230.16,0.5243705]
[1732634365351,4.3438,230.21,230.16,0.5243705]
[1732634367233,26.05684345,230.22,230.16,0.5243705]
[1732634367842,26.05684345,230.2,230.16,0.5243705]
[1732634369421,30.40094345,230.2,230.16,0.5243705]
[1732634370841,26.05684345,230.18,230.16,0.5243705]
[1732634371540,26.05684345,230.2,230.16,0.5243705]
[1732634371725,26.05684345,230.18,230.16,0.5243705]
[1732634373251,4.3442,230.2,230.16,0.5243705]
[1732634373252,26.05684345,230.2,230.16,0.5243705]
[1732634373427,30.40084345,230.2,230.16,0.5243705]
[1732634373756,26.05684345,230.18,230.16,0.5243705]
[1732634374918,30.40134345,230.18,230.16,0.5243705]
[1732634375625,10.8586,230.24,230.16,0.5243705]
[1732634375626,26.05684345,230.2,230.16,0.5243705]
[1732634376452,26.05684345,230.25,230.17,26.05684345]
[1732634376742,26.05684345,230.23,230.16,0.5243705]
[1732634376929,4.3436,230.22,230.16,0.5243705]
[1732634377333,26.05684345,230.21,230.16,0.5243705]
[1732634377548,30.40044345,230.22,230.16,0.5243705]
[1732634377749,26.05684345,230.19,230.16,0.5243705]
[1732634378262,26.05684345,230.17,230.16,0.5243705]
[1732634378547,26.05684345,230.19,230.16,0.5243705]
[1732634379136,30.40114345,230.19,230.16,0.5243705]
[1732634379443,4.344,230.2,230.16,0.5243705]
[1732634379950,26.05684345,230.19,230.16,0.5243705]
[1732634380652,4.344,230.2,230.16,0.5243705]
[1732634381650,26.05684345,230.17,230.16,0.5243705]
[1732634381837,4.344,230.2,230.16,0.5243705]
[1732634382238,26.05684345,230.19,230.16,0.5243705]
[1732634382634,4.344,230.2,230.16,0.5243705]
[1732634383239,26.05684345,230.19,230.16,0.5243705]
[1732634383440,26.05684345,230.17,230.16,0.5243705]
[1732634385535,30.40144345,230.17,230.16,0.5243705]
[1732634386435,26.05684345,230.17,230.16,0.5243705]
[1732634386738,4.3446,230.17,230.16,0.5243705]
[1732634388149,20.66483391,230.17,230.16,0.5243705]
[1732634392161,4.3446,230.17,230.16,0.5243705]
[1732634392961,16.32023391,230.21,230.16,0.5243705]
[1732634393171,16.32023391,230.17,230.16,0.5243705]
[1732634395460,20.66483391,230.17,230.16,0.5243705]
[1732634396039,26.26483391,230.17,230.16,0.5243705]
[1732634396243,42.58506782,230.17,230.16,0.5243705]
[1732634396953,26.26483391,230.17,230.16,0.5243705]
[1732634397540,42.58506782,230.17,230.16,0.5243705]
[1732634397857,36.98506782,230.17,230.16,0.5243705]
[1732634398044,20.0,230.13,230.04,6.1104]
[1732634398244,16.32023391,230.05,229.97,29.3796886]
[1732634398442,16.32023391,230.04,229.97,41.35162251]
[1732634398641,16.32023391,230.05,229.98,16.32023391]
[1732634398868,16.32023391,230.07,230.0,16.32023391]
[1732634399055,16.32023391,230.12,229.97,29.3796886]
[1732634399260,4.3446,230.17,230.1,16.32023391]
[1732634399468,4.3446,230.17,230.08,16.32023391]
[1732634399645,4.3446,230.17,230.01,5.0]
[1732634399961,4.3446,230.17,230.02,23.776884]
[1732634400158,15.2041,230.2,230.03,15.2153]
[1732634400358,4.344,230.2,230.09,23.776884]
[1732634400542,3.25028562,230.26,230.13,23.776884]
[1732634400749,16.32023391,230.22,230.13,16.32023391]
[1732634400979,16.32023391,230.18,230.11,16.32023391]
[1732634401160,16.32023391,230.14,230.08,23.1202]
[1732634401339,16.32023391,230.19,230.09,23.776884]
[1732634401537,5.6,230.26,230.09,23.776884]
[1732634401759,8.84966082,230.26,230.09,28.776884]
[1732634401947,15.1995,230.27,230.09,28.776884]
[1732634401948,16.32023391,230.24,230.16,16.32023391]
[1732634402355,16.32023391,230.22,230.14,40.09711791]
[1732634402552,16.32023391,230.23,230.16,16.32023391]
[1732634402782,16.32023391,230.25,230.17,16.32023391]
[1732634402951,16.32023391,230.26,230.19,16.32023391]
[1732634403283,16.32023391,230.22,230.13,16.32023391]
[1732634403571,16.32023391,230.2,230.11,16.32023391]
[1732634403951,16.32023391,230.18,230.11,16.32023391]
[1732634404149,16.32023391,230.16,229.98,5.0]
[1732634404361,16.32023391,230.05,229.98,16.32023391]
[1732634404673,16.32023391,229.99,229.92,4.3493]
[1732634404873,16.32023391,229.96,229.91,6.2406]
[1732634405575,32.64046782,229.94,229.86,6.2406]
[1732634405776,1.90793388,230.05,229.86,6.2406]
[1732634405777,16.32023391,229.87,229.86,6.2406]
[1732634406012,16.32023391,229.87,229.86,10.591]
[1732634406149,16.32023391,229.87,229.86,6.2406]
[1732634406352,24.00170794,229.87,229.86,6.2406]
[1732634407281,24.00170794,229.87,229.74,4.3527]
[1732634407451,24.00170794,229.9,229.71,81.41155087]
[1732634407452,24.00170794,229.75,229.72,4.353]
[1732634407865,24.00170794,229.73,229.7,4.8776705]
[1732634408081,24.00170794,229.77,229.7,4.8776705]
[1732634408251,24.00170794,229.75,229.7,4.8776705]
[1732634408459,24.00170794,229.71,229.7,0.5243705]
[1732634408657,24.00170794,229.75,229.7,0.5243705]
[1732634408871,24.00170794,229.73,229.7,0.5243705]
[1732634409664,24.00170794,229.75,229.7,0.5243705]
[1732634409877,15.2265,229.86,229.59,6.2406]
[1732634409878,20.0,229.68,229.59,6.2406]
[1732634410074,24.00170794,229.6,229.54,4.3565]
[1732634410473,24.00170794,229.58,229.54,4.3565]
[1732634410692,24.00170794,229.58,229.52,4.3568]
[1732634411000,4.3544,229.65,229.5,6.2406]
[1732634411177,24.00170794,229.56,229.5,6.2406]
[1732634411984,24.00170794,229.51,229.47,0.5243705]
[1732634412193,24.00170794,229.49,229.47,0.5243705]
[1732634412362,24.00170794,229.49,229.34,4.3601]
[1732634412363,28.35930794,229.48,229.34,4.3601]
[1732634412565,24.00170794,229.36,229.3,4.361]
[1732634412787,6.11620577,229.56,229.3,4.361]
[1732634412788,24.00170794,229.4,229.31,5.0]
[1732634413084,24.00170794,229.4,229.31,24.00170794]
[1732634413392,24.00170794,229.43,229.35,24.00170794]
[1732634414267,39.15402997,229.41,229.35,4.3601]
[1732634414690,39.15402997,229.39,229.35,4.3601]
[1732634415191,39.15402997,229.47,229.37,39.15402997]
[1732634415397,39.15402997,229.49,229.42,39.15402997]
[1732634415767,39.15402997,229.45,229.36,39.15402997]
[1732634416011,39.15402997,229.47,229.38,39.15402997]
[1732634416195,39.15402997,229.51,229.45,23.776884]
[1732634416399,39.15402997,229.53,229.47,23.776884]
[1732634416696,4.3552,229.61,229.39,5.0]
[1732634416994,6.27238659,229.61,229.38,5.0]
[1732634417172,5.0,229.58,229.38,5.0]
[1732634417370,5.0,229.6,229.34,5.0]
[1732634417682,39.15402997,229.48,229.4,39.15402997]
[1732634417993,39.15402997,229.48,229.41,23.776884]
[1732634418896,39.15402997,229.46,229.38,43.51332997]
[1732634419284,39.15402997,229.48,229.4,39.15402997]
[1732634419885,39.15402997,229.49,229.43,39.15402997]
[1732634420299,39.15402997,229.49,229.41,39.15402997]
[1732634420476,39.15402997,229.57,229.48,39.15402997]
[1732634420680,39.15402997,229.62,229.54,39.15402997]
[1732634420884,39.15402997,229.67,229.59,39.15402997]
[1732634421091,39.15402997,229.69,229.61,44.15402997]
[1732634421276,39.15402997,229.69,229.63,5.0]
[1732634421477,39.15402997,229.65,229.56,5.0]
[1732634421672,39.15402997,229.57,229.49,5.0]
[1732634421892,39.15402997,229.58,229.54,5.0]
[1732634422092,39.15402997,229.6,229.51,39.15402997]
[1732634422295,39.15402997,229.58,229.51,39.15402997]
[1732634422484,39.15402997,229.54,229.49,5.0]
[1732634422679,15.2432,229.61,229.49,5.0]
[1732634422680,39.15402997,229.58,229.53,5.0]
[1732634422884,39.15402997,229.58,229.49,39.15402997]
[1732634423177,39.15402997,229.58,229.55,5.0]
[1732634423481,10.8854,229.67,229.57,5.0]
[1732634423482,39.15402997,229.62,229.57,5.0]
[1732634423809,39.15402997,229.62,229.46,43.51192997]
[1732634423810,39.15402997,229.66,229.61,5.0]
[1732634424008,43.50782997,229.68,229.61,39.15402997]
[1732634424177,43.50752997,229.7,229.65,5.0]
[1732634424497,14.54244194,229.71,229.67,5.0]
[1732634424874,39.15402997,229.68,229.67,5.0]
[1732634425087,39.15402997,229.68,229.63,5.0]
[1732634425281,39.15402997,229.68,229.67,5.0]
[1732634425481,39.15402997,229.7,229.64,5.0]
[1732634425806,39.15402997,229.7,229.67,5.0]
[1732634426482,43.50762997,229.7,229.67,5.0]
[1732634427876,4.3536,229.7,229.67,5.0]
[1732634428177,11.481,229.76,229.7,5.0]
[1732634428178,39.15402997,229.74,229.7,5.0]
[1732634428376,43.50682997,229.74,229.67,5.0]
[1732634428693,4.3515,229.81,229.74,5.0]
[1732634428997,39.15402997,229.82,229.68,39.15402997]
[1732634428998,14.53468781,229.84,229.81,5.0]
[1732634429212,17.426441,229.85,229.83,44.15402997]
[1732634429577,39.15402997,229.86,229.85,5.0]
[1732634429773,39.15402997,229.86,229.8,5.0]
[1732634429987,39.15402997,229.83,229.8,5.0]
[1732634430596,39.15402997,229.83,229.81,5.0]
[1732634430794,43.50432997,229.87,229.83,5.0]
[1732634431020,39.15402997,229.89,229.86,5.0]
[1732634431377,39.15402997,229.87,229.85,5.0]
[1732634431600,39.15402997,229.86,229.76,39.15402997]
[1732634431782,5.0,229.87,229.7,39.15402997]
[1732634431986,39.15402997,229.77,229.7,39.15402997]
[1732634432197,39.15402997,229.75,229.71,5.0]
[1732634432408,39.15402997,229.79,229.76,5.0]
[1732634432590,39.15402997,229.77,229.75,5.0]
[1732634432797,20.0,229.79,229.67,39.15402997]
[1732634433012,20.0,229.81,229.75,5.0]
[1732634433306,20.0,229.81,229.71,5.0]
[1732634433307,39.15402997,229.77,229.71,5.0]
[1732634433487,39.15402997,229.74,229.71,5.0]
[1732634433687,20.0,229.81,229.75,5.0]
[1732634433688,39.15402997,229.76,229.75,5.0]
[1732634433903,20.0,229.73,229.65,39.15402997]
[1732634434089,20.0,229.73,229.63,6.5302]